Cogmind - Beta 16.1 @@@ ROGUE MODE // 2026.02.17 @ 22:58:19 Player: APerTAS Result: Destroyed by G-47 Trooper with Particle Gun Performance ------------- Evolutions (2) 1000 Regions Visited (3) 600 Robots Destroyed (0) 0 Value Destroyed (0) 0 Prototype IDs (0) 0 Alien Tech Used (0) 0 Bonus (470) 470 TOTAL SCORE: 2070 Bonus ------- Pacifist 470 Cogmind --------- Core Integrity 0/550 Matter 293/300 Energy 100/100 System Corruption 0% Temperature Cool (9) Movement Walking (120) Location -8/Materials Parts ------- > --- POWER (1) -------- (None) > --- PROPULSION (2) --- Improved Aluminum Leg > --- UTILITY (2) ------ (None) > --- WEAPON (6) ------- (None) > --- INVENTORY (5) ---- (None) Peak State ------------ > --- POWER ------------ (None) > --- PROPULSION ------- (None) > --- UTILITY ---------- (None) > --- WEAPON ----------- Katana > --- INVENTORY -------- (None) [Rating: 3] Favorites ----------- Power None Propulsion Improved Aluminum Leg Leg Improved Aluminum Leg Utility None Weapon Katana Ballistic Cannon Flak Cannon Slashing Weapon Katana Build | -11 -10 -9 -8 ------- Run | Yrd Mat Mat Mat Slots Evolved 4 | . . 2 2 Power . | . . . . Propulsion . | . . . . Utility . | . . . . Weapon 4 | . . 2 2 Parts Attached 3 | . . . 3 Power . | . . . . Engine . | . . . . Core . | . . . . Reactor . | . . . . Propulsion 1 | . . . 1 Treads . | . . . . Leg 1 | . . . 1 Wheel . | . . . . Hover . | . . . . Flight . | . . . . Utility . | . . . . Device . | . . . . Storage . | . . . . Processor . | . . . . Hackware . | . . . . Protection . | . . . . Artifact . | . . . . Weapon 2 | . . . 2 Energy Gun . | . . . . Energy Cannon . | . . . . Ballistic Gun . | . . . . Ballistic Cannon 1 | . . . 1 Launcher . | . . . . Special Weapon . | . . . . Impact Weapon . | . . . . Slashing Weapon 1 | . . . 1 Piercing Weapon . | . . . . Special Melee Weapon . | . . . . Unidentified Prototypes . | . . . . Parts Lost 2 | . . . 2 Power . | . . . . Propulsion . | . . . . Utility . | . . . . Weapon 2 | . . . 2 Highest Loss Streak 2 | . . . 2 To Critical Strikes . | . . . . Average Backups . | . . . . Power . | . . . . Propulsion . | . . . . Utility . | . . . . Weapon . | . . . . Tool/Special . | . . . . Unused Backups . | . . . . Power . | . . . . Propulsion . | . . . . Utility . | . . . . Weapon . | . . . . Tool/Special . | . . . . Average Slot Usage (%) 1 | . . . 3 Peak Build Rating 3 | . . . 3 Average Rating . | . . . 1 On Entrance . | . . . . Avg Prop Armor Cover (%) . | . . . . Naked Turns 202 | . 57 112 33 Heaviest Build 2 | . . . 2 Greatest Support 3 | 3 3 3 3 Greatest Overweight (x) . | . . . . Average Overweight (x) . | . . . . Largest Inventory Capacity 5 | 5 5 5 5 Average Capacity 5 | 5 5 5 5 Most Carried . | . . . . Average Carried . | . . . . Final Capacity 5 | 5 5 5 5 Final Carried . | . . . . Class Distribution -------------------- 100% | Mutant Dominant Class ---------------- Mutant | -10/Materials Mutant | -9/Materials Mutant | -8/Materials Resources | -11 -10 -9 -8 ----------- Run | Yrd Mat Mat Mat Matter Collected 212 | 200 . . 12 Remotely . | . . . . Salvage Created . | . . . . Parts . | . . . . Haulers Intercepted . | . . . . Recyclers Shooed . | . . . . Parts Field Recycled . | . . . . Retrieved Matter . | . . . . Parts Self-Destructed . | . . . . Prevented . | . . . . Parts Restored . | . . . . Kills | -11 -10 -9 -8 ------- Run | Yrd Mat Mat Mat Combat Hostiles Destroyed . | . . . . Classes Destroyed . | . . . . Best Kill Streak . | . . . . Combat Bots Only . | . . . . Max Kills in Single Turn . | . . . . Gunslinging . | . . . . Exploded . | . . . . Melee . | . . . . Uniques/NPCs Destroyed . | . . . . Combat | -11 -10 -9 -8 -------- Run | Yrd Mat Mat Mat Hostile Shots Fired 59 | . 11 4 44 Missed 20 | . 5 1 14 Hits 39 | . 6 3 30 Projectile 39 | . 6 3 30 Critical Strikes 2 | . . . 2 Damage Taken 910 | . 79 44 787 Core 675 | . 79 44 552 Absorbed by Shields . | . . . . Core Remaining (%) 85 | 100 68 89 . Volleys Fired 4 | . . . 4 Largest 1 | . . . 1 Hottest 37 | . . . 37 Shots Fired 4 | . . . 4 Gun . | . . . . Cannon 4 | . . . 4 Launcher . | . . . . Special . | . . . . Kinetic 4 | . . . 4 Thermal . | . . . . Explosive . | . . . . Electromagnetic . | . . . . Robot Hit Streak 4 | . . . 4 Robot Miss Streak 3 | . . . 3 Penetration Max . | . . . . Secondary Targets . | . . . . Shots Hit Robots 8 | . . . 8 Core Hits 9 | . 2 . 7 Critical Kills . | . . . . Critical Parts Destroyed . | . . . . Critical Strikes . | . . . . Melee Attacks 4 | . . . 4 Impact . | . . . . Slashing 4 | . . . 4 Piercing . | . . . . Sneak Attacks . | . . . . Combat Hostiles . | . . . . Follow-up Attacks . | . . . . Damage Inflicted 238 | . 11 9 218 Guns . | . . . . Cannons 133 | . . . 133 Explosions . | . . . . Melee 68 | . . . 68 Ramming 37 | . 11 9 17 Kinetic 133 | . . . 133 Thermal . | . . . . Explosive . | . . . . Electromagnetic . | . . . . Impact . | . . . . Slashing 68 | . . . 68 Piercing . | . . . . Highest Corruption . | . . . . Average Corruption . | . . . . Corruption Purged . | . . . . Corruption Blocked . | . . . . Overload Shots . | . . . . Overflow Damage 7 | . . . 7 Projectiles . | . . . . Explosions . | . . . . Melee 7 | . . . 7 Knockbacks 1 | . . . 1 Impact . | . . . . Kinetic 1 | . . . 1 Secondary . | . . . . Self-Inflicted Damage 13 | . 5 4 4 Shots . | . . . . Rammed 5 | . 3 1 1 Targets Rammed 11 | . 3 1 7 Kicked 6 | . . . 6 Crushed . | . . . . Highest Temperature . | . . . . Average Temperature . | . . . . Received Heat Transfer 243 | . 39 15 189 Siege Activations . | . . . . Martial Activations . | . . . . Shielding Activations . | . . . . Robots Disrupted . | . . . . Combat Hostiles . | . . . . Robots Corrupted . | . . . . Combat Hostiles . | . . . . Parts Fried . | . . . . Impact Corruptions . | . . . . Robots Melted . | . . . . Combat Hostiles . | . . . . Parts Melted . | . . . . Heat Transferred . | . . . . Parts Sabotaged . | . . . . Parts Stolen . | . . . . Parts Stripped . | . . . . Power Chain Reactions . | . . . . Alert | -11 -10 -9 -8 ------- Run | Yrd Mat Mat Mat Maximum Alert Level . | . . . . Low Security (%) 100 | 100 100 100 100 Level 1 . | . . . . Level 2 . | . . . . Level 3 . | . . . . Level 4 . | . . . . Level 5 . | . . . . High Security . | . . . . Max Security . | . . . . Peak Influence 15 | . . 15 . Initial . | . . . . Average . | . . 1 . Influence Increases 15 | . . 15 . Partial Spotted 15 | . . 15 . Influence Decreases 15 | . . 15 . Time Decay 15 | . . 15 . Squads Dispatched 4 | . 1 1 2 Investigation 3 | . 1 1 1 Extermination . | . . . . Reinforcement 1 | . . . 1 Assault . | . . . . Garrison . | . . . . Intercept . | . . . . Searches Triggered . | . . . . Construction Impeded . | . . . . Haulers Reinforced . | . . . . Active Scanning Responses . | . . . . Cargo Convoy Interrupts . | . . . . Stealth | -11 -10 -9 -8 --------- Run | Yrd Mat Mat Mat Distress Signals . | . . . . Communications Jammed . | . . . . Distress Signals . | . . . . Times Spotted 17 | . 3 5 9 Peak Tracking Total 7 | . 3 5 7 Tactical Retreats . | . . . . Traps | -11 -10 -9 -8 ------- Run | Yrd Mat Mat Mat Traps Triggered . | . . . . Indirectly . | . . . . Trap Hack Attempts . | . . . . Triggered . | . . . . Disarmed . | . . . . Reprogrammed . | . . . . Reused . | . . . . Traps Extracted . | . . . . Installed . | . . . . Triggered . | . . . . Machines | -11 -10 -9 -8 ---------- Run | Yrd Mat Mat Mat Machines Disabled . | . . . . Max in Single Turn . | . . . . Machines Repaired . | . . . . Machines Dismantled . | . . . . Machines Sabotaged . | . . . . Overloaded Fab Kills . | . . . . Hacking | -11 -10 -9 -8 --------- Run | Yrd Mat Mat Mat Machines Accessed 3 | . 1 1 1 Terminals 2 | . . 1 1 Fabricators . | . . . . Repair Stations 1 | . 1 . . Recycling Units . | . . . . Scanalyzers . | . . . . Garrison Access . | . . . . Total Hacks 7 | . 1 4 2 Successful 2 | . 1 . 1 Failed 5 | . . 4 1 Catastrophic 4 | . . 3 1 Database Lockouts . | . . . . Manual 7 | . 1 4 2 Terminals 6 | . . 4 2 Fabricators . | . . . . Repair Stations 1 | . 1 . . Recycling Units . | . . . . Scanalyzers . | . . . . Garrison Access . | . . . . Terminal Hacks . | . . . . Fabricator Hacks . | . . . . Repair Station Hacks . | . . . . Recycling Unit Hacks . | . . . . Scanalyzer . | . . . . Garrison Access Hacks . | . . . . Unauthorized Hacks 2 | . 1 . 1 Terminals 1 | . . . 1 Disrupt 1 | . . . 1 Fabricators . | . . . . Repair Stations 1 | . 1 . . Patch 1 | . 1 . . Recycling Units . | . . . . Scanalyzers . | . . . . Garrison Access . | . . . . Data Cores Recovered . | . . . . Used . | . . . . Hacking Detections 2 | . . 1 1 Full Trace Events 2 | . . 1 1 Feedback Events . | . . . . Feedback Blocked . | . . . . Robot Schematics Acquired . | . . . . Robots Built . | . . . . Authchips . | . . . . Time . | . . . . Total Robot Build Rating . | . . . . Part Schematics Acquired . | . . . . Parts Built . | . . . . Authchips . | . . . . Time . | . . . . Total Part Build Rating . | . . . . Part Studies Acquired . | . . . . Parts Repaired . | . . . . Time . | . . . . Parts Recycled . | . . . . Recycled Matter . | . . . . Retrieved Matter . | . . . . Retrieved Components . | . . . . Parts Scanalyzed . | . . . . Part Schematics Acquired . | . . . . Parts Damaged . | . . . . Bothacking | -11 -10 -9 -8 ------------ Run | Yrd Mat Mat Mat Used RIF Installer . | . . . . Robots Hacked . | . . . . Non-combat . | . . . . Combat . | . . . . Robot Hacks Applied . | . . . . Relay Couplers Released . | . . . . Fabnet Peak Effective % . | . . . . Robots Rewired . | . . . . Allies Hacked . | . . . . Hacks Repelled . | . . . . Allies | -11 -10 -9 -8 -------- Run | Yrd Mat Mat Mat Total Allies . | . . . . Largest Group . | . . . . Highest-Rated Group . | . . . . Highest-Rated Ally . | . . . . Total Orders . | . . . . Ally Attacks . | . . . . Total Damage . | . . . . Kills . | . . . . Allies Corrupted . | . . . . Allies Melted . | . . . . Intel | -11 -10 -9 -8 ------- Run | Yrd Mat Mat Mat Active Infowar (turns) . | . . . . Robot Analysis Total . | . . . . Derelict Logs Recovered . | . . . . Drone Launches . | . . . . Drone Recoveries . | . . . . Exploration | -11 -10 -9 -8 ------------- Run | Yrd Mat Mat Mat Turns Passed 241 | 13 57 112 59 Spaces Moved 408 | 26 103 221 58 Core 408 | 26 103 221 58 Treads . | . . . . Legs . | . . . . Wheels . | . . . . Hover . | . . . . Flight . | . . . . Fastest Speed 50 | 50 50 50 50 Average Speed 50 | 50 50 50 50 Slowest Speed 50 | 50 50 50 50 Overloaded Moves . | . . . . Propulsion Burnouts . | . . . . Robots Hopped . | . . . . Potential Cave-ins . | . . . . Cave-ins Triggered . | . . . . Exploration Rate (%) 14 | 3 19 24 10 Regions Visited 3 Branch Regions . Pre-discovered Areas . | . . . . Known Exits Taken . | . . . . Unknown Exits Taken 3 | 1 1 1 . Scrap Searched . | . . . . Spaces Dug . | . . . . Terrain Destroyed . | . . . . Melee . | . . . . Projectile . | . . . . AOE . | . . . . Terrain Rammed . | . . . . Walls Destroyed . | . . . . Machines Disabled . | . . . . Actions | -11 -10 -9 -8 --------- Run | Yrd Mat Mat Mat Total 430 | 25 107 222 76 Wait 3 | . 2 1 . Move 406 | 25 102 221 58 Hop . | . . . . Pick Up . | . . . . Fast Attach 3 | . . . 3 Attach . | . . . . Detach . | . . . . Swap . | . . . . Drop . | . . . . Fire 4 | . . . 4 Melee 4 | . . . 4 Ram 4 | . 3 . 1 Kick 6 | . . . 6 Crush . | . . . . Escape Stasis . | . . . . Rewire . | . . . . Trap . | . . . . Miscellaneous . | . . . . Route ------- -11/Scrapyard -10/Materials -9/Materials (discovered 2 exits: *Mat / [*Min]) -8/Materials History --------- Turn | Location | Event 3 | -11/Scrapyard | Discovered new exit (range 15) 14 | -11/Scrapyard | Entered Materials 62 | -10/Materials | Discovered new exit (range 16) 71 | -10/Materials | Entered another Materials area 71 | -9/Materials | Evolved 2 slots: Weapon x2 157 | -9/Materials | Discovered new exit (range 15) 175 | -9/Materials | Discovered new exit (range 12) 183 | -9/Materials | Entered another Materials area 183 | -8/Materials | Evolved 2 slots: Weapon x2 220 | -8/Materials | Core integrity fell below 50% 230 | -8/Materials | Core integrity fell below 20% 242 | -8/Materials | Destroyed by G-47 Trooper with Particle Gun Last Messages --------------- 00221_ Slammed into K-01 Serf. 00221_ Penetrated by Slug. 00222_ K-01 Serf collects debris. 00223_ Acquired Flak Cannon. 00223_ Slug penetrates Wall. 00223_ Knocked back. 00226_ K-01 Serf collects debris. 00230_ G-47 Trooper knocked back. 00231_ Flak Cannon destroyed. 00231_ Knocked back. 00232_ Acquired 8 matter. 00232_ Atomic Centrifuge disabled. 00235_ Acquired Imp. Aluminum Leg. 00236_ Kicked H-61 Shepherd. 00237_ Penetrated by Slug. 00237_ Kicked H-61 Shepherd. 00241_ K-01 Serf collects debris. 00241_ Kicked H-61 Shepherd. 00241_ A-02 Transporter destroyed. 00242_ Kicked H-61 Shepherd. Map ----- +----------------------------------------------------+ | ?????????????# # #????????????????????????? | | ????????+##### + #????????????????????????? | | ? # #????????????????????????? | | ? ####+###????????????????????????? | | ? #??# #??????????????????????????? | | ??##### ########??# #?###########??????????????? | | ??????# ???????????# #?# #??????????????? | | ??????# ????????????# #?# #??????????????? | | ??????#?????######### ### #??????????????? | | ??????? # #??????????????? | | ??????? + #??????????????? | | ??????? # #??????????????? | | ????????################# #??????????????? | | ????????????????????????# #??????????????? | | ????????????????????????#####+#####??????????????? | | ????????????????????????????# #??????????????????? | | ???????????????????????????## ##?????????????????? | | ???????????????????????##### #?????????????????? | | ???????????????????????# T #?????????????????? | | ???????????????????????# ### #?????????????????? | | ????????????????????#### #?#####??#??????????????? | | ????????????????????+ ########;###????????????? | | ????????????????????#### ## !!! ! #????????????? | | ????????????????????####%## !k! #????????????? | | ??????????#######+### %; !!% #????????????? | | ?????????? T a !!^! *% @; """ #????????????? | | ???????? g !^%[! % Hgg% "" #????????????? | | ???????? g g g =!^!= u; % """ #????????????? | | ???????? ####### # #????????????? | | ?????????"??????????####### #????????????? | | ??????????????????????????###########????????????? | | ?????????????????????????????????????????????????? | | ?????????????????????????????????????????????????? | | ?????????????????????????????????????????????????? | | ?????????????????????????????????????????????????? | | ?????????????????????????????????????????????????? | | ?????????????????????????????????????????????????? | | ?????????????????????????????????????????????????? | | ?????????????????????????????????????????????????? | | ?????????????????????????????????????????????????? | | ?????????????????????????????????????????????????? | | ?????????????????????????????????????????????????? | | ?????????????????????????????????????????????????? | | ?????????????????????????????????????????????????? | | ?????????????????????????????????????????????????? | | ?????????????????????????????????????????????????? | | ?????????????????????????????????????????????????? | | ?????????????????????????????????????????????????? | | ?????????????????????????????????????????????????? | | ?????????????????????????????????????????????????? | +----------------------------------------------------+ Best States ------------- Heat Dissipation 31 Energy Generation 5 Energy Capacity 100 Matter Stores 300 Matter Capacity 300 Sight Range 16 Terrain Scan Density 10 Evasion (%) 50 Item Schematics ----------------- None Robot Schematics ------------------ None Fabricated ------------ Nothing Repaired ---------- Nothing Studied --------- None Alien Tech Used ----------------- None Achievements -------------- None Challenges ------------ None Game ------ Seed HackingThrowingField Manual? 0 Play Time 00:04:29 Cumulative 51.0 hours Start 2026.02.17 @ 22:54:57 End 2026.02.17 @ 22:58:19 Sessions 1 Manual Loads 0 Difficulty Rogue Special Mode None Game No. 158 Rogue 158 Adventurer 0 Explorer 0 Win Type - Total 0 Types 0/0/0/0/0/0/0/0/0/0 Lore% 59 Gallery% 34 Achievement% 32 Wizard Run 0 Options --------- Layout 0 ASCII 0 Keyboard 0 Movement Arrows Keybinds 0 Fullscreen 1 Font 24/Terminus Map View 64x52 Zoom Use 0% Tactical HUD 1 Map Filters NONE Filters NONE Steam 1 RUN: 9077ae3b-8d8c-47c9-b8f2-91074aa2be8a